[Event "Titled Tuesday Blitz June 1 2021"]
[White "Samsonkin, Artiom"]
[Black "Maksimenko, Viktor"]
[WhiteFideId "13503111"]
[BlackFideId "13710478"]
[WhiteElo "2745"]
[BlackElo "2570"]
[Result "0-1"]
[Round "07"]
[TimeControl "180+1"]
[Date "2021.06.01"]
[WhiteClock "0:00:17"]
[BlackClock "0:00:22"]

1. e4 {[%clk 0:03:00]}  e5 {[%clk 0:02:59]} 2. Nf3 {[%clk 0:03:00]}  Nc6 {[%clk 0:03:00]} 3. d4 {[%clk 0:03:00]}  exd4 {[%clk 0:03:00]} 4. Bc4 {[%clk 0:03:01]}  Nf6 {[%clk 0:03:01]} 5. e5 {[%clk 0:03:01]}  d5 {[%clk 0:03:00]} 6. Bb5 {[%clk 0:03:02]}  Ne4 {[%clk 0:03:01]} 7. Nxd4 {[%clk 0:03:02]}  Bc5 {[%clk 0:03:01]} 8. Be3 {[%clk 0:02:59]}  O-O {[%clk 0:03:01]} 9. Nxc6 {[%clk 0:02:59]}  bxc6 {[%clk 0:03:00]} 10. Bxc5 {[%clk 0:02:59]}  Nxc5 {[%clk 0:03:01]} 11. Bxc6 {[%clk 0:02:59]}  Rb8 {[%clk 0:03:01]} 12. Qxd5 {[%clk 0:03:00]}  Qe7 {[%clk 0:03:01]} 13. O-O {[%clk 0:02:59]}  Rxb2 {[%clk 0:02:47]} 14. Nc3 {[%clk 0:02:51]}  Rd8 {[%clk 0:02:37]} 15. Qf3 {[%clk 0:02:44]}  Qxe5 {[%clk 0:02:18]} 16. Rfe1 {[%clk 0:02:35]}  Qf6 {[%clk 0:02:17]} 17. Qe3 {[%clk 0:01:55]}  Qxc6 {[%clk 0:02:13]} 18. Nd5 {[%clk 0:01:40]}  Kh8 {[%clk 0:00:59]} 19. Qe5 {[%clk 0:01:16]}  Rb8 {[%clk 0:00:43]} 20. Ne7 {[%clk 0:01:04]}  Qd6 {[%clk 0:00:33]} 21. Qh5 {[%clk 0:00:32]}  Be6 {[%clk 0:00:25]} 22. Nf5 {[%clk 0:00:27]}  Bxf5 {[%clk 0:00:25]} 23. Qxf5 {[%clk 0:00:28]}  Kg8 {[%clk 0:00:25]} 24. h3 {[%clk 0:00:27]}  Ne6 {[%clk 0:00:25]} 25. Qa5 {[%clk 0:00:25]}  Qb6 {[%clk 0:00:24]} 26. Qe5 {[%clk 0:00:25]}  h6 {[%clk 0:00:24]} 27. Re3 {[%clk 0:00:21]}  Qd4 {[%clk 0:00:22]} 28. Rae1 {[%clk 0:00:17]}  Qxe5 {[%clk 0:00:23]} 29. Rxe5 {[%clk 0:00:18]}  Rd2 {[%clk 0:00:23]} 30. Ra5 {[%clk 0:00:18]}  Rxc2 {[%clk 0:00:22]} 31. Rxa7 {[%clk 0:00:18]}  Rbb2 {[%clk 0:00:23]} 32. Rf1 {[%clk 0:00:16]}  Rxa2 {[%clk 0:00:23]} 33. Rb7 {[%clk 0:00:17]}  Rcb2 {[%clk 0:00:22]} 0-1


[Site "https://www.chess.com"]

[Event "Titled Tuesday Blitz June 1 2021"]
[White "Samunenkov, Ihor"]
[Black "Seletsky, Grigory"]
[WhiteFideId "14187086"]
[BlackFideId "14112191"]
[WhiteElo "2242"]
[BlackElo "2492"]
[Result "0-1"]
[Round "07"]
[TimeControl "180+1"]
[Date "2021.06.01"]
[WhiteClock "0:00:04"]
[BlackClock "0:00:58"]

1. d4 {[%clk 0:03:00]}  d5 {[%clk 0:02:49]} 2. Nf3 {[%clk 0:03:00]}  Bf5 {[%clk 0:02:41]} 3. g3 {[%clk 0:02:53]}  e6 {[%clk 0:02:41]} 4. c4 {[%clk 0:02:52]}  c6 {[%clk 0:02:41]} 5. Nc3 {[%clk 0:02:52]}  h6 {[%clk 0:02:40]} 6. Bg2 {[%clk 0:02:45]}  Nf6 {[%clk 0:02:40]} 7. O-O {[%clk 0:02:42]}  Nbd7 {[%clk 0:02:36]} 8. Nd2 {[%clk 0:02:42]}  Be7 {[%clk 0:02:33]} 9. e4 {[%clk 0:02:43]}  dxe4 {[%clk 0:02:33]} 10. Ndxe4 {[%clk 0:02:43]}  Nxe4 {[%clk 0:02:33]} 11. Nxe4 {[%clk 0:02:44]}  Nf6 {[%clk 0:02:34]} 12. Nc3 {[%clk 0:02:39]}  O-O {[%clk 0:02:33]} 13. h3 {[%clk 0:02:37]}  Qc7 {[%clk 0:02:32]} 14. Qe2 {[%clk 0:02:34]}  Rfe8 {[%clk 0:02:31]} 15. Be3 {[%clk 0:02:22]}  Rad8 {[%clk 0:02:31]} 16. Rad1 {[%clk 0:02:22]}  Qa5 {[%clk 0:02:31]} 17. a3 {[%clk 0:02:12]}  Bf8 {[%clk 0:02:21]} 18. f4 {[%clk 0:02:04]}  c5 {[%clk 0:02:17]} 19. Kh1 {[%clk 0:02:00]}  cxd4 {[%clk 0:02:05]} 20. Bxd4 {[%clk 0:01:59]}  b6 {[%clk 0:01:56]} 21. g4 {[%clk 0:01:52]}  Bh7 {[%clk 0:01:53]} 22. g5 {[%clk 0:01:48]}  hxg5 {[%clk 0:01:49]} 23. fxg5 {[%clk 0:01:42]}  Qxg5 {[%clk 0:01:48]} 24. Bxf6 {[%clk 0:01:41]}  gxf6 {[%clk 0:01:47]} 25. Rxd8 {[%clk 0:01:39]}  Rxd8 {[%clk 0:01:47]} 26. Ne4 {[%clk 0:01:40]}  Bxe4 {[%clk 0:01:45]} 27. Bxe4 {[%clk 0:01:41]}  Bg7 {[%clk 0:01:43]} 28. Rg1 {[%clk 0:01:36]}  Rd2 {[%clk 0:01:36]} 29. Qf3 {[%clk 0:01:03]}  Qe5 {[%clk 0:01:30]} 30. Rg2 {[%clk 0:00:41]}  Qxb2 {[%clk 0:01:29]} 31. Qf4 {[%clk 0:00:12]}  Rxg2 {[%clk 0:01:24]} 32. Qb8+ {[%clk 0:00:11]}  Bf8 {[%clk 0:01:23]} 33. Bxg2 {[%clk 0:00:12]}  Qxa3 {[%clk 0:01:21]} 34. c5 {[%clk 0:00:08]}  Qxc5 {[%clk 0:01:19]} 35. h4 {[%clk 0:00:08]}  Qe5 {[%clk 0:01:16]} 36. Qxa7 {[%clk 0:00:08]}  Qf4 {[%clk 0:01:15]} 37. Qxb6 {[%clk 0:00:03]}  Qxh4+ {[%clk 0:01:15]} 38. Kg1 {[%clk 0:00:03]}  f5 {[%clk 0:01:15]} 39. Qb3 {[%clk 0:00:03]}  Be7 {[%clk 0:01:13]} 40. Qb8+ {[%clk 0:00:03]}  Kg7 {[%clk 0:01:13]} 41. Qe5+ {[%clk 0:00:03]}  Bf6 {[%clk 0:01:12]} 42. Qe2 {[%clk 0:00:03]}  Bd4+ {[%clk 0:01:12]} 43. Kf1 {[%clk 0:00:03]}  Qf4+ {[%clk 0:01:12]} 44. Ke1 {[%clk 0:00:04]}  Qe3 {[%clk 0:01:12]} 45. Qxe3 {[%clk 0:00:04]}  Bxe3 {[%clk 0:01:12]} 46. Ke2 {[%clk 0:00:05]}  Bc5 {[%clk 0:01:12]} 47. Kf3 {[%clk 0:00:06]}  Kf6 {[%clk 0:01:12]} 48. Bf1 {[%clk 0:00:06]}  e5 {[%clk 0:01:12]} 49. Bc4 {[%clk 0:00:06]}  e4+ {[%clk 0:01:12]} 50. Kf4 {[%clk 0:00:06]}  Bd6+ {[%clk 0:01:12]} 51. Ke3 {[%clk 0:00:06]}  Be5 {[%clk 0:01:12]} 52. Bb3 {[%clk 0:00:05]}  Bb2 {[%clk 0:01:11]} 53. Bc4 {[%clk 0:00:05]}  Kg6 {[%clk 0:01:09]} 54. Bd5 {[%clk 0:00:04]}  Bc1+ {[%clk 0:01:03]} 55. Ke2 {[%clk 0:00:04]}  f6 {[%clk 0:01:01]} 56. Bc4 {[%clk 0:00:03]}  f4 {[%clk 0:00:59]} 57. Bd5 {[%clk 0:00:03]}  f5 {[%clk 0:00:59]} 58. Be6 {[%clk 0:00:02]}  f3+ {[%clk 0:00:58]} 59. Kf2 {[%clk 0:00:02]}  Bf4 {[%clk 0:00:58]} 60. Bd5 {[%clk 0:00:02]}  Kg5 {[%clk 0:00:58]} 61. Bc4 {[%clk 0:00:01]}  Bd6 {[%clk 0:00:58]} 62. Bd5 {[%clk 0:00:02]}  Kf4 {[%clk 0:00:58]} 63. Kf1 {[%clk 0:00:03]}  Bc5 {[%clk 0:00:58]} 64. Bc6 {[%clk 0:00:03]}  e3 {[%clk 0:00:58]} 65. Bb5 {[%clk 0:00:03]}  e2+ {[%clk 0:00:59]} 66. Ke1 {[%clk 0:00:04]}  Bb4+ {[%clk 0:00:58]} 0-1


[Site "https://www.chess.com"]

[Event "Titled Tuesday Blitz June 1 2021"]
[White "Sargsyan, Anna M."]
[Black "Fier, Alexandr"]
[WhiteFideId "13308130"]
[BlackFideId "2107139"]
[WhiteElo "2558"]
[BlackElo "2733"]
[Result "0-1"]
[Round "07"]
[TimeControl "180+1"]
[Date "2021.06.01"]
[WhiteClock "0:00:02"]
[BlackClock "0:00:15"]

1. d4 {[%clk 0:03:00]}  Nf6 {[%clk 0:02:56]} 2. c4 {[%clk 0:03:00]}  c5 {[%clk 0:02:57]} 3. Nf3 {[%clk 0:03:00]}  cxd4 {[%clk 0:02:56]} 4. Nxd4 {[%clk 0:03:00]}  Nc6 {[%clk 0:02:56]} 5. Nc2 {[%clk 0:03:00]}  b6 {[%clk 0:02:51]} 6. g3 {[%clk 0:02:58]}  Bb7 {[%clk 0:02:52]} 7. Bg2 {[%clk 0:02:58]}  h5 {[%clk 0:02:52]} 8. O-O {[%clk 0:02:57]}  h4 {[%clk 0:02:52]} 9. Nc3 {[%clk 0:02:57]}  hxg3 {[%clk 0:02:52]} 10. hxg3 {[%clk 0:02:58]}  d6 {[%clk 0:02:52]} 11. Bg5 {[%clk 0:02:53]}  Qd7 {[%clk 0:02:53]} 12. b3 {[%clk 0:02:50]}  Qg4 {[%clk 0:02:44]} 13. Bxf6 {[%clk 0:02:42]}  gxf6 {[%clk 0:02:39]} 14. e3 {[%clk 0:02:40]}  Qg6 {[%clk 0:02:31]} 15. Re1 {[%clk 0:02:36]}  Qh6 {[%clk 0:02:29]} 16. Nd5 {[%clk 0:02:35]}  O-O-O {[%clk 0:02:25]} 17. Nd4 {[%clk 0:02:27]}  Ne5 {[%clk 0:02:21]} 18. e4 {[%clk 0:02:05]}  e6 {[%clk 0:02:19]} 19. Ne3 {[%clk 0:01:59]}  Qh2+ {[%clk 0:02:17]} 20. Kf1 {[%clk 0:01:58]}  Bh6 {[%clk 0:02:18]} 21. a4 {[%clk 0:01:37]}  Bxe3 {[%clk 0:02:15]} 22. Rxe3 {[%clk 0:01:38]}  f5 {[%clk 0:02:10]} 23. a5 {[%clk 0:01:20]}  fxe4 {[%clk 0:01:35]} 24. axb6 {[%clk 0:01:17]}  axb6 {[%clk 0:01:27]} 25. Nb5 {[%clk 0:00:40]}  Nf3 {[%clk 0:01:17]} 26. Rxf3 {[%clk 0:00:15]}  exf3 {[%clk 0:01:02]} 27. Bxf3 {[%clk 0:00:16]}  Bxf3 {[%clk 0:01:03]} 28. Qxf3 {[%clk 0:00:16]}  Qh1+ {[%clk 0:01:03]} 29. Ke2 {[%clk 0:00:17]}  Qxf3+ {[%clk 0:01:02]} 30. Kxf3 {[%clk 0:00:18]}  Kb7 {[%clk 0:01:02]} 31. Ra7+ {[%clk 0:00:18]}  Kb8 {[%clk 0:01:02]} 32. Ke2 {[%clk 0:00:15]}  Rhf8 {[%clk 0:01:01]} 33. Re7 {[%clk 0:00:15]}  d5 {[%clk 0:01:01]} 34. Nd4 {[%clk 0:00:14]}  Rd6 {[%clk 0:00:54]} 35. f4 {[%clk 0:00:09]}  dxc4 {[%clk 0:00:52]} 36. Nb5 {[%clk 0:00:10]}  Rc6 {[%clk 0:00:52]} 37. bxc4 {[%clk 0:00:10]}  Rxc4 {[%clk 0:00:52]} 38. Rd7 {[%clk 0:00:08]}  Rc5 {[%clk 0:00:47]} 39. Nd4 {[%clk 0:00:03]}  Rc7 {[%clk 0:00:46]} 40. Rd6 {[%clk 0:00:03]}  Kb7 {[%clk 0:00:47]} 41. Nb5 {[%clk 0:00:02]}  Rc5 {[%clk 0:00:44]} 42. Nd4 {[%clk 0:00:01]}  b5 {[%clk 0:00:31]} 43. Rd7+ {[%clk 0:00:01]}  Kb6 {[%clk 0:00:28]} 44. Rd6+ {[%clk 0:00:01]}  Ka5 {[%clk 0:00:29]} 45. Nb3+ {[%clk 0:00:01]}  Kb4 {[%clk 0:00:29]} 46. Nxc5 {[%clk 0:00:02]}  Kxc5 {[%clk 0:00:30]} 47. Rd7 {[%clk 0:00:03]}  b4 {[%clk 0:00:30]} 48. Kd3 {[%clk 0:00:03]}  Rg8 {[%clk 0:00:28]} 49. Rxf7 {[%clk 0:00:02]}  Rxg3+ {[%clk 0:00:28]} 50. Kc2 {[%clk 0:00:03]}  Kd5 {[%clk 0:00:28]} 51. f5 {[%clk 0:00:02]}  e5 {[%clk 0:00:26]} 52. Rb7 {[%clk 0:00:02]}  Kc5 {[%clk 0:00:21]} 53. f6 {[%clk 0:00:02]}  Rf3 {[%clk 0:00:21]} 54. f7 {[%clk 0:00:02]}  e4 {[%clk 0:00:22]} 55. Rc7+ {[%clk 0:00:02]}  Kd6 {[%clk 0:00:21]} 56. Rb7 {[%clk 0:00:02]}  Rf2+ {[%clk 0:00:20]} 57. Kd1 {[%clk 0:00:02]}  Kc5 {[%clk 0:00:16]} 58. Rc7+ {[%clk 0:00:02]}  Kd4 {[%clk 0:00:15]} 0-1


[Site "https://www.chess.com"]

[Event "Titled Tuesday Blitz June 1 2021"]
[White "Seemann, Jakub"]
[Black "Kretov, Evgenij"]
[WhiteFideId "21874697"]
[BlackFideId "4167821"]
[WhiteElo "1793"]
[BlackElo "2381"]
[Result "0-1"]
[Round "07"]
[TimeControl "180+1"]
[Date "2021.06.01"]
[WhiteClock "0:00:02"]
[BlackClock "0:00:30"]

1. e4 {[%clk 0:03:00]}  c5 {[%clk 0:03:00]} 2. Nf3 {[%clk 0:03:00]}  Nc6 {[%clk 0:03:00]} 3. Bb5 {[%clk 0:03:00]}  g6 {[%clk 0:02:59]} 4. O-O {[%clk 0:02:59]}  Bg7 {[%clk 0:02:59]} 5. c3 {[%clk 0:02:59]}  Nf6 {[%clk 0:02:59]} 6. Re1 {[%clk 0:02:58]}  O-O {[%clk 0:02:58]} 7. d4 {[%clk 0:02:58]}  cxd4 {[%clk 0:02:58]} 8. cxd4 {[%clk 0:02:59]}  d5 {[%clk 0:02:58]} 9. e5 {[%clk 0:02:59]}  Ne8 {[%clk 0:02:58]} 10. Nc3 {[%clk 0:02:59]}  Nc7 {[%clk 0:02:53]} 11. Bd3 {[%clk 0:02:58]}  Rb8 {[%clk 0:02:53]} 12. Bg5 {[%clk 0:02:55]}  b5 {[%clk 0:02:51]} 13. Qd2 {[%clk 0:02:54]}  Bg4 {[%clk 0:02:46]} 14. Be2 {[%clk 0:02:38]}  Bxf3 {[%clk 0:02:36]} 15. Bxf3 {[%clk 0:02:37]}  b4 {[%clk 0:02:35]} 16. Ne2 {[%clk 0:02:37]}  Ne6 {[%clk 0:02:34]} 17. Be3 {[%clk 0:02:36]}  Qd7 {[%clk 0:02:30]} 18. Bg4 {[%clk 0:02:34]}  Rfc8 {[%clk 0:02:27]} 19. Nf4 {[%clk 0:02:33]}  Ncd8 {[%clk 0:02:27]} 20. h4 {[%clk 0:02:21]}  Rc4 {[%clk 0:02:12]} 21. b3 {[%clk 0:02:13]}  Rc3 {[%clk 0:02:09]} 22. h5 {[%clk 0:02:11]}  a5 {[%clk 0:02:04]} 23. hxg6 {[%clk 0:01:44]}  hxg6 {[%clk 0:02:03]} 24. Nxe6 {[%clk 0:01:43]}  Nxe6 {[%clk 0:02:03]} 25. f4 {[%clk 0:01:43]}  Rbc8 {[%clk 0:01:54]} 26. f5 {[%clk 0:01:41]}  Nf8 {[%clk 0:01:53]} 27. Qe2 {[%clk 0:01:34]}  gxf5 {[%clk 0:01:48]} 28. Bh3 {[%clk 0:01:27]}  Ng6 {[%clk 0:01:44]} 29. Qh5 {[%clk 0:01:21]}  e6 {[%clk 0:01:44]} 30. Bg5 {[%clk 0:00:55]}  Rd3 {[%clk 0:01:31]} 31. Rac1 {[%clk 0:00:27]}  Rxd4 {[%clk 0:01:25]} 32. Rxc8+ {[%clk 0:00:12]}  Qxc8 {[%clk 0:01:24]} 33. Rc1 {[%clk 0:00:12]}  Qd7 {[%clk 0:01:16]} 34. Bf6 {[%clk 0:00:13]}  Nxe5 {[%clk 0:00:45]} 35. Qg5 {[%clk 0:00:04]}  Ng6 {[%clk 0:00:45]} 36. Bxd4 {[%clk 0:00:04]}  Bxd4+ {[%clk 0:00:45]} 37. Kh1 {[%clk 0:00:05]}  Kg7 {[%clk 0:00:41]} 38. Rd1 {[%clk 0:00:04]}  Bf6 {[%clk 0:00:38]} 39. Qd2 {[%clk 0:00:04]}  Qd6 {[%clk 0:00:35]} 40. Qd3 {[%clk 0:00:04]}  Qf4 {[%clk 0:00:34]} 41. Rf1 {[%clk 0:00:04]}  Qh4 {[%clk 0:00:33]} 42. Qf3 {[%clk 0:00:02]}  Be5 {[%clk 0:00:32]} 43. Qf2 {[%clk 0:00:01]}  Bg3 {[%clk 0:00:31]} 44. Qe2 {[%clk 0:00:02]}  Nf4 {[%clk 0:00:30]} 45. Qf3 {[%clk 0:00:02]}  Nxh3 {[%clk 0:00:30]} 0-1


[Site "https://www.chess.com"]

[Event "Titled Tuesday Blitz June 1 2021"]
[White "Shahade, Gregory"]
[Black "Klenburg, Michael"]
[WhiteFideId "2009064"]
[BlackFideId "14102072"]
[WhiteElo "2718"]
[BlackElo "2359"]
[Result "1-0"]
[Round "07"]
[TimeControl "180+1"]
[Date "2021.06.01"]
[WhiteClock "0:00:09"]
[BlackClock "0:00:07"]

1. e4 {[%clk 0:03:00]}  d6 {[%clk 0:02:59]} 2. d4 {[%clk 0:03:00]}  Nf6 {[%clk 0:02:59]} 3. Nc3 {[%clk 0:03:01]}  g6 {[%clk 0:02:58]} 4. Be3 {[%clk 0:02:59]}  c6 {[%clk 0:02:57]} 5. Qd2 {[%clk 0:02:57]}  Nbd7 {[%clk 0:02:57]} 6. f3 {[%clk 0:02:57]}  b5 {[%clk 0:02:57]} 7. g4 {[%clk 0:02:53]}  Nb6 {[%clk 0:02:56]} 8. h4 {[%clk 0:02:47]}  h5 {[%clk 0:02:55]} 9. g5 {[%clk 0:02:44]}  Nfd7 {[%clk 0:02:55]} 10. d5 {[%clk 0:02:38]}  cxd5 {[%clk 0:02:49]} 11. Bxb5 {[%clk 0:02:09]}  Bg7 {[%clk 0:02:31]} 12. Nxd5 {[%clk 0:02:02]}  O-O {[%clk 0:02:14]} 13. Nxb6 {[%clk 0:01:50]}  Nxb6 {[%clk 0:02:11]} 14. Bd4 {[%clk 0:01:48]}  e5 {[%clk 0:02:05]} 15. Be3 {[%clk 0:01:26]}  Be6 {[%clk 0:02:00]} 16. Ne2 {[%clk 0:01:25]}  d5 {[%clk 0:01:58]} 17. Bc5 {[%clk 0:01:12]}  dxe4 {[%clk 0:01:54]} 18. Bxf8 {[%clk 0:01:10]}  Qxf8 {[%clk 0:01:53]} 19. fxe4 {[%clk 0:01:10]}  Qc5 {[%clk 0:01:47]} 20. Bd3 {[%clk 0:01:04]}  Rd8 {[%clk 0:01:36]} 21. a3 {[%clk 0:00:38]}  Bf8 {[%clk 0:01:20]} 22. O-O-O {[%clk 0:00:38]}  Rc8 {[%clk 0:00:36]} 23. Kb1 {[%clk 0:00:33]}  a5 {[%clk 0:00:34]} 24. Nc3 {[%clk 0:00:33]}  Rb8 {[%clk 0:00:31]} 25. Ka1 {[%clk 0:00:31]}  Nc4 {[%clk 0:00:26]} 26. Bxc4 {[%clk 0:00:30]}  Qxc4 {[%clk 0:00:26]} 27. Qd3 {[%clk 0:00:30]}  Qc5 {[%clk 0:00:24]} 28. Nd5 {[%clk 0:00:27]}  Bxd5 {[%clk 0:00:16]} 29. exd5 {[%clk 0:00:27]}  Bd6 {[%clk 0:00:16]} 30. c4 {[%clk 0:00:26]}  a4 {[%clk 0:00:16]} 31. Rhf1 {[%clk 0:00:24]}  Rb3 {[%clk 0:00:15]} 32. Qc2 {[%clk 0:00:22]}  Qb6 {[%clk 0:00:15]} 33. Rd3 {[%clk 0:00:18]}  Bc5 {[%clk 0:00:14]} 34. Rxb3 {[%clk 0:00:18]}  axb3 {[%clk 0:00:14]} 35. Qe4 {[%clk 0:00:16]}  Bd4 {[%clk 0:00:14]} 36. Kb1 {[%clk 0:00:16]}  Qc5 {[%clk 0:00:14]} 37. Qd3 {[%clk 0:00:14]}  Qc7 {[%clk 0:00:13]} 38. Qxb3 {[%clk 0:00:14]}  Qd7 {[%clk 0:00:12]} 39. Qd3 {[%clk 0:00:14]}  Qg4 {[%clk 0:00:12]} 40. Qf3 {[%clk 0:00:13]}  Qd7 {[%clk 0:00:11]} 41. Qf6 {[%clk 0:00:11]}  Qb7 {[%clk 0:00:11]} 42. b4 {[%clk 0:00:09]}  Qa7 {[%clk 0:00:10]} 43. c5 {[%clk 0:00:09]}  e4 {[%clk 0:00:10]} 44. Qxd4 {[%clk 0:00:07]}  Qxa3 {[%clk 0:00:10]} 45. Re1 {[%clk 0:00:04]}  Qb3+ {[%clk 0:00:10]} 46. Qb2 {[%clk 0:00:04]}  Qd3+ {[%clk 0:00:10]} 47. Qc2 {[%clk 0:00:04]}  Qxd5 {[%clk 0:00:09]} 48. Rxe4 {[%clk 0:00:05]}  Kh7 {[%clk 0:00:08]} 49. Re1 {[%clk 0:00:04]}  Qd4 {[%clk 0:00:08]} 50. Qb2 {[%clk 0:00:03]}  Qd3+ {[%clk 0:00:08]} 51. Qc2 {[%clk 0:00:04]}  Qd4 {[%clk 0:00:08]} 52. Qb3 {[%clk 0:00:04]}  Kg7 {[%clk 0:00:07]} 53. Rf1 {[%clk 0:00:04]}  Qd7 {[%clk 0:00:05]} 54. Rxf7+ {[%clk 0:00:05]}  Qxf7 {[%clk 0:00:04]} 55. Qxf7+ {[%clk 0:00:06]}  Kxf7 {[%clk 0:00:05]} 56. Kc2 {[%clk 0:00:07]}  Ke6 {[%clk 0:00:06]} 57. Kd3 {[%clk 0:00:08]}  Kd5 {[%clk 0:00:07]} 58. Ke3 {[%clk 0:00:08]}  Kc6 {[%clk 0:00:06]} 59. Ke4 {[%clk 0:00:09]}  Kb5 {[%clk 0:00:07]} 60. Ke5 {[%clk 0:00:09]} 1-0


[Site "https://www.chess.com"]

[Event "Titled Tuesday Blitz June 1 2021"]
[White "Shahaliyev, Ismayil"]
[Black "Aldokhin, Ivan"]
[WhiteFideId "13406388"]
[BlackFideId "24115720"]
[WhiteElo "2105"]
[BlackElo "2306"]
[Result "1-0"]
[Round "07"]
[TimeControl "180+1"]
[Date "2021.06.01"]
[WhiteClock "0:00:23"]
[BlackClock "0:00:05"]

1. Nf3 {[%clk 0:03:00]}  Nf6 {[%clk 0:03:00]} 2. b3 {[%clk 0:02:58]}  g6 {[%clk 0:02:59]} 3. Bb2 {[%clk 0:02:59]}  Bg7 {[%clk 0:03:00]} 4. e3 {[%clk 0:02:59]}  O-O {[%clk 0:03:00]} 5. g3 {[%clk 0:02:59]}  d6 {[%clk 0:03:01]} 6. Bg2 {[%clk 0:03:00]}  e5 {[%clk 0:03:01]} 7. O-O {[%clk 0:03:01]}  Nc6 {[%clk 0:03:02]} 8. d3 {[%clk 0:03:01]}  a5 {[%clk 0:03:01]} 9. a4 {[%clk 0:03:01]}  Qe7 {[%clk 0:02:54]} 10. Nc3 {[%clk 0:03:01]}  d5 {[%clk 0:02:53]} 11. Nd2 {[%clk 0:03:02]}  Be6 {[%clk 0:02:48]} 12. Nb5 {[%clk 0:03:01]}  h5 {[%clk 0:02:39]} 13. Ba3 {[%clk 0:03:00]}  Nb4 {[%clk 0:02:21]} 14. d4 {[%clk 0:02:56]}  exd4 {[%clk 0:02:10]} 15. Nxd4 {[%clk 0:02:55]}  Bg4 {[%clk 0:02:10]} 16. Qc1 {[%clk 0:02:54]}  c5 {[%clk 0:02:07]} 17. N4f3 {[%clk 0:02:53]}  Ne4 {[%clk 0:02:05]} 18. Bb2 {[%clk 0:02:52]}  Nc3 {[%clk 0:01:58]} 19. Re1 {[%clk 0:02:48]}  Bf5 {[%clk 0:01:48]} 20. e4 {[%clk 0:02:48]}  dxe4 {[%clk 0:01:41]} 21. Nh4 {[%clk 0:02:47]}  Rad8 {[%clk 0:01:21]} 22. Nxf5 {[%clk 0:02:47]}  gxf5 {[%clk 0:01:21]} 23. Nc4 {[%clk 0:02:48]}  Qe6 {[%clk 0:01:08]} 24. Bh3 {[%clk 0:02:42]}  Bh6 {[%clk 0:01:00]} 25. Ne3 {[%clk 0:02:35]}  Nbd5 {[%clk 0:00:47]} 26. Qd2 {[%clk 0:02:06]}  Qg6 {[%clk 0:00:20]} 27. Kh1 {[%clk 0:01:16]}  Rd6 {[%clk 0:00:15]} 28. Bxc3 {[%clk 0:01:06]}  Nxe3 {[%clk 0:00:15]} 29. Qe2 {[%clk 0:01:01]}  Ng4 {[%clk 0:00:13]} 30. Rad1 {[%clk 0:00:59]}  Rfd8 {[%clk 0:00:12]} 31. Bxg4 {[%clk 0:00:57]}  Qxg4 {[%clk 0:00:12]} 32. Qxg4+ {[%clk 0:00:53]}  hxg4 {[%clk 0:00:12]} 33. Rxd6 {[%clk 0:00:54]}  Rxd6 {[%clk 0:00:12]} 34. Bxa5 {[%clk 0:00:54]}  Kf8 {[%clk 0:00:08]} 35. Kg2 {[%clk 0:00:55]}  Ke7 {[%clk 0:00:08]} 36. h3 {[%clk 0:00:55]}  gxh3+ {[%clk 0:00:07]} 37. Kxh3 {[%clk 0:00:56]}  Bd2 {[%clk 0:00:07]} 38. Bxd2 {[%clk 0:00:51]}  Rxd2 {[%clk 0:00:08]} 39. f3 {[%clk 0:00:52]}  Rxc2 {[%clk 0:00:05]} 40. fxe4 {[%clk 0:00:52]}  Kf6 {[%clk 0:00:04]} 41. Rf1 {[%clk 0:00:52]}  Ke5 {[%clk 0:00:01]} 42. Rxf5+ {[%clk 0:00:49]}  Ke6 {[%clk 0:00:02]} 43. Rf3 {[%clk 0:00:48]}  Ra2 {[%clk 0:00:02]} 44. Kg4 {[%clk 0:00:48]}  Rb2 {[%clk 0:00:02]} 45. Kf4 {[%clk 0:00:45]}  b6 {[%clk 0:00:03]} 46. Rd3 {[%clk 0:00:44]}  f6 {[%clk 0:00:03]} 47. Ke3 {[%clk 0:00:44]}  Rb1 {[%clk 0:00:03]} 48. Kf3 {[%clk 0:00:44]}  Rb2 {[%clk 0:00:04]} 49. Kf4 {[%clk 0:00:45]}  Rb1 {[%clk 0:00:04]} 50. Rf3 {[%clk 0:00:45]}  Rb2 {[%clk 0:00:04]} 51. g4 {[%clk 0:00:45]}  Rb1 {[%clk 0:00:04]} 52. Rh3 {[%clk 0:00:46]}  Rf1+ {[%clk 0:00:03]} 53. Ke3 {[%clk 0:00:46]}  Rg1 {[%clk 0:00:03]} 54. Kf3 {[%clk 0:00:45]}  Rb1 {[%clk 0:00:04]} 55. Ke2 {[%clk 0:00:45]}  Rb2+ {[%clk 0:00:03]} 56. Kd1 {[%clk 0:00:46]}  Ke5 {[%clk 0:00:04]} 57. Kc1 {[%clk 0:00:44]}  Re2 {[%clk 0:00:03]} 58. Rh5+ {[%clk 0:00:39]}  Kd4 {[%clk 0:00:03]} 59. Rf5 {[%clk 0:00:37]}  Kc3 {[%clk 0:00:03]} 60. Rf3+ {[%clk 0:00:35]}  Kb4 {[%clk 0:00:02]} 61. Rxf6 {[%clk 0:00:35]}  Kxb3 {[%clk 0:00:02]} 62. Rxb6+ {[%clk 0:00:35]}  Kc3 {[%clk 0:00:02]} 63. Kd1 {[%clk 0:00:31]}  Rxe4 {[%clk 0:00:03]} 64. a5 {[%clk 0:00:31]}  Rxg4 {[%clk 0:00:03]} 65. a6 {[%clk 0:00:31]}  Rd4+ {[%clk 0:00:03]} 66. Ke2 {[%clk 0:00:30]}  Ra4 {[%clk 0:00:04]} 67. Ke3 {[%clk 0:00:30]}  c4 {[%clk 0:00:04]} 68. Ke4 {[%clk 0:00:30]}  Kd2 {[%clk 0:00:04]} 69. Rd6+ {[%clk 0:00:27]}  Ke2 {[%clk 0:00:03]} 70. Kd4 {[%clk 0:00:25]}  Kd2 {[%clk 0:00:03]} 71. Kc5+ {[%clk 0:00:21]}  Kc2 {[%clk 0:00:01]} 72. Kb5 {[%clk 0:00:22]}  c3 {[%clk 0:00:01]} 73. Kxa4 {[%clk 0:00:22]}  Kb2 {[%clk 0:00:02]} 74. a7 {[%clk 0:00:22]}  c2 {[%clk 0:00:03]} 75. Rb6+ {[%clk 0:00:22]}  Ka1 {[%clk 0:00:03]} 76. Rc6 {[%clk 0:00:23]}  c1=Q {[%clk 0:00:04]} 77. Rxc1+ {[%clk 0:00:22]}  Ka2 {[%clk 0:00:05]} 78. Rc2+ {[%clk 0:00:23]} 1-0


[Site "https://www.chess.com"]

[Event "Titled Tuesday Blitz June 1 2021"]
[White "Shtyka, Sergey"]
[Black "Real De Azua, Ernesto"]
[WhiteFideId "4138465"]
[BlackFideId "108154"]
[WhiteElo "2102"]
[BlackElo "2476"]
[Result "0-1"]
[Round "07"]
[TimeControl "180+1"]
[Date "2021.06.01"]
[WhiteClock "0:00:29"]
[BlackClock "0:00:58"]

1. e4 {[%clk 0:03:00]}  c5 {[%clk 0:02:56]} 2. Nf3 {[%clk 0:03:01]}  e6 {[%clk 0:02:52]} 3. d4 {[%clk 0:03:01]}  cxd4 {[%clk 0:02:52]} 4. Nxd4 {[%clk 0:03:02]}  Nc6 {[%clk 0:02:50]} 5. Nc3 {[%clk 0:03:02]}  a6 {[%clk 0:02:50]} 6. Be3 {[%clk 0:02:58]}  Nf6 {[%clk 0:02:47]} 7. Bd3 {[%clk 0:02:56]}  Qc7 {[%clk 0:02:44]} 8. O-O {[%clk 0:02:54]}  Nxd4 {[%clk 0:02:43]} 9. Bxd4 {[%clk 0:02:54]}  Bc5 {[%clk 0:02:44]} 10. Bxc5 {[%clk 0:02:54]}  Qxc5 {[%clk 0:02:45]} 11. Kh1 {[%clk 0:02:50]}  b5 {[%clk 0:02:35]} 12. f4 {[%clk 0:02:42]}  b4 {[%clk 0:02:35]} 13. e5 {[%clk 0:02:41]}  bxc3 {[%clk 0:02:32]} 14. exf6 {[%clk 0:02:41]}  gxf6 {[%clk 0:02:31]} 15. bxc3 {[%clk 0:02:34]}  Bb7 {[%clk 0:02:28]} 16. Rb1 {[%clk 0:02:27]}  Bc6 {[%clk 0:02:22]} 17. Qe2 {[%clk 0:02:21]}  f5 {[%clk 0:02:16]} 18. Bxa6 {[%clk 0:02:18]}  Rg8 {[%clk 0:02:10]} 19. Rg1 {[%clk 0:01:58]}  Ke7 {[%clk 0:01:40]} 20. Bb7 {[%clk 0:01:51]}  Rxa2 {[%clk 0:01:38]} 21. Bxc6 {[%clk 0:01:50]}  Qxc6 {[%clk 0:01:39]} 22. Rb3 {[%clk 0:01:40]}  Qe4 {[%clk 0:01:23]} 23. Qf2 {[%clk 0:01:37]}  Rxc2 {[%clk 0:01:03]} 24. Qh4+ {[%clk 0:01:27]}  Kd6 {[%clk 0:01:03]} 25. Qf6 {[%clk 0:00:29]}  Qxg2+ {[%clk 0:00:58]} 0-1


[Site "https://www.chess.com"]